Cogmind - Beta 15 @@@ ROGUE MODE // 2025.08.03 @ 13:36:15 Player: IAMTRASHMAN Result: Self-destructed Performance ------------- Evolutions (1) 500 Regions Visited (2) 400 Robots Destroyed (6) 30 Value Destroyed (154) 154 Prototype IDs (1) 20 Alien Tech Used (0) 0 Bonus (200) 200 TOTAL SCORE: 1304 Bonus ------- Pacifist 200 Cogmind --------- Core Integrity 370/400 Matter 260/300 Energy 31/250 System Corruption 2% Temperature Cool (0) Movement Flying (31) Location -9/Materials Parts ------- > --- POWER (1) -------- Ion Engine > --- PROPULSION (4) --- Improved Flight Unit Improved Flight Unit Improved Flight Unit Improved Flight Unit > --- UTILITY (2) ------ Seismic Detector Shield Generator > --- WEAPON (2) ------- Light EM Pulse Cannon > --- INVENTORY (5) ---- ECM Suite Shield Generator Light EM Pulse Cannon Peak State ------------ > --- POWER ------------ Ion Engine > --- PROPULSION ------- Improved Flight Unit Improved Flight Unit Improved Flight Unit Improved Flight Unit > --- UTILITY ---------- Seismic Detector Shield Generator > --- WEAPON ----------- Light EM Pulse Cannon > --- INVENTORY -------- ECM Suite Shield Generator Light EM Pulse Cannon [Rating: 18] Favorites ----------- Power Backup Power III Engine Backup Power III Propulsion Light Treads Treads Light Treads Flight Unit Improved Flight Unit Utility Seismic Detector Device Seismic Detector Weapon Assault Rifle Energy Gun Backup Laser III Energy Cannon Light EM Pulse Cannon Ballistic Gun Assault Rifle Build | -11 -10 -9 ------- Run | Yrd Mat Mat Slots Evolved 2 | . . 2 Power . | . . . Propulsion 2 | . . 2 Utility . | . . . Weapon . | . . . Parts Attached 14 | 4 2 8 Power 1 | . . 1 Engine 1 | . . 1 Core . | . . . Reactor . | . . . Propulsion 6 | 2 . 4 Treads 2 | 2 . . Leg . | . . . Wheel . | . . . Hover . | . . . Flight 4 | . . 4 Utility 3 | . 2 1 Device 3 | . 2 1 Storage . | . . . Processor . | . . . Hackware . | . . . Protection . | . . . Artifact . | . . . Weapon 4 | 2 . 2 Energy Gun . | . . . Energy Cannon 2 | . . 2 Ballistic Gun 2 | 2 . . Ballistic Cannon . | . . . Launcher . | . . . Special Weapon . | . . . Impact Weapon . | . . . Slashing Weapon . | . . . Piercing Weapon . | . . . Special Melee Weapon . | . . . Unidentified Prototypes 1 | . . 1 Corrupted Parts 1 | . . 1 System Corruption 2 | . . 2 Parts Lost 1 | . . 1 Power 1 | . . 1 Propulsion . | . . . Utility . | . . . Weapon . | . . . Highest Loss Streak 1 | . . 1 To Critical Strikes . | . . . Average Backups 3 | . 2 4 Power . | . . . Propulsion . | . . 1 Utility 1 | . . 1 Weapon 1 | . 1 1 Tool/Special . | . . . Unused Backups 5 | 2 2 1 Power . | . . . Propulsion 2 | 2 . . Utility 1 | . . 1 Weapon 2 | . 2 . Tool/Special . | . . . Average Slot Usage (%) 64 | . 60 66 Engine 7 | . 1 10 Treads 22 | . 28 20 Flight 4 | . . 6 Device 19 | . 11 22 Energy Cannon 5 | . . 8 Ballistic Gun 4 | . 18 . Peak Build Rating 18 | 4 11 18 Average Rating 7 | 3 4 10 On Entrance 3 | . 4 7 Naked Turns . | . . . Heaviest Build 13 | 4 5 13 Greatest Support 40 | 40 3 40 Greatest Overweight (x) 4 | 1 1 4 Average Overweight (x) . | . . . Largest Inventory Capacity 5 | 5 5 5 Average Capacity 5 | 5 5 5 Most Carried 5 | 2 5 5 Average Carried 3 | . 2 4 Final Capacity 5 | 5 5 5 Final Carried 4 | 1 4 3 Class Distribution -------------------- 91% | Mutant 8% | Sprinter Dominant Class ---------------- Mutant | -10/Materials Mutant | -9/Materials Resources | -11 -10 -9 ----------- Run | Yrd Mat Mat Matter Collected 346 | 193 . 153 Remotely . | . . . Salvage Created 222 | . . 222 Parts 8 | . . 8 Haulers Intercepted . | . . . Recyclers Shooed . | . . . Parts Field Recycled . | . . . Retrieved Matter . | . . . Parts Self-Destructed . | . . . Prevented . | . . . Kills | -11 -10 -9 ------- Run | Yrd Mat Mat Combat Hostiles Destroyed 4 | . . 4 Cannons 4 | . . 4 Classes Destroyed 3 | . . 3 Worker 1 | . . 1 Tunneler 1 | . . 1 Grunt 4 | . . 4 Best Kill Streak 2 | . . 2 Combat Bots Only 2 | . . 2 Max Kills in Single Turn 1 | . . 1 Gunslinging . | . . . Exploded . | . . . Melee . | . . . Uniques/NPCs Destroyed . | . . . Combat | -11 -10 -9 -------- Run | Yrd Mat Mat Hostile Shots Fired 34 | . . 34 Missed 11 | . . 11 Hits 23 | . . 23 Projectile 23 | . . 23 Damage Taken 220 | . . 220 Core 30 | . . 30 Absorbed by Shields 30 | . . 30 Core Remaining (%) 100 | 100 100 . Volleys Fired 31 | . 6 25 Largest 2 | . 2 2 Hottest 112 | . 40 112 Shots Fired 38 | . 12 26 Gun 12 | . 12 . Cannon 26 | . . 26 Launcher . | . . . Special . | . . . Kinetic 12 | . 12 . Thermal . | . . . Explosive . | . . . Electromagnetic 26 | . . 26 Robot Hit Streak 6 | . 1 6 Robot Miss Streak 6 | . 6 1 Penetration Max . | . . . Secondary Targets . | . . . Shots Hit Robots 20 | . 2 18 Core Hits 8 | . . 8 Critical Kills . | . . . Critical Parts Destroyed 1 | . 1 . Critical Strikes 1 | . 1 . Destroy 1 | . 1 . Melee Attacks . | . . . Impact . | . . . Slashing . | . . . Piercing . | . . . Sneak Attacks . | . . . Combat Hostiles . | . . . Follow-up Attacks . | . . . Damage Inflicted 548 | . 23 525 Guns 23 | . 23 . Cannons 424 | . . 424 Explosions 100 | . . 100 Melee . | . . . Ramming 1 | . . 1 Kinetic 23 | . 23 . Thermal 100 | . . 100 Explosive . | . . . Electromagnetic 424 | . . 424 Impact . | . . . Slashing . | . . . Piercing . | . . . Highest Corruption 2 | . . 2 Average Corruption 2 | . . 2 Corruption Purged . | . . . Corruption Blocked . | . . . Overload Shots . | . . . Overflow Damage . | . . . Projectiles . | . . . Explosions . | . . . Melee . | . . . Knockbacks . | . . . Impact . | . . . Kinetic . | . . . Secondary . | . . . Self-Inflicted Damage . | . . . Shots . | . . . Rammed 1 | . . 1 Targets Rammed 1 | . . 1 Kicked . | . . . Crushed . | . . . Highest Temperature 48 | . . 48 Average Temperature 14 | . . 14 Received Heat Transfer 118 | . . 118 Siege Activations . | . . . Martial Activations . | . . . Shielding Activations . | . . . Robots Disrupted . | . . . Combat Hostiles . | . . . Robots Corrupted . | . . . Combat Hostiles . | . . . Parts Fried 1 | . . 1 Impact Corruptions . | . . . Robots Melted . | . . . Combat Hostiles . | . . . Parts Melted . | . . . Heat Transferred 250 | . . 250 Parts Sabotaged . | . . . Parts Stolen . | . . . Parts Stripped . | . . . Power Chain Reactions 1 | . . 1 Alert | -11 -10 -9 ------- Run | Yrd Mat Mat Maximum Alert Level . | . . . Low Security (%) 100 | 100 100 100 Level 1 . | . . . Level 2 . | . . . Level 3 . | . . . Level 4 . | . . . Level 5 . | . . . High Security . | . . . Max Security . | . . . Peak Influence 71 | . 16 71 Initial 6 | . . 6 Average 18 | . 2 27 Influence Increases 186 | . 16 170 Destroy 0b10 Robot/C 80 | . . 80 Destroy 0b10 Robot/NC 10 | . . 10 Destroy Leader 10 | . . 10 Successful Hack 25 | . 16 9 Disable Machine 15 | . . 15 Destroy Structure 1 | . . 1 Lose Combat Pursuer 45 | . . 45 Influence Decreases 125 | . . 125 Entered New Map 10 | . . 10 Time Decay 105 | . . 105 Lost Part 10 | . . 10 Squads Dispatched 3 | . 1 2 Investigation . | . . . Extermination . | . . . Reinforcement 3 | . 1 2 Assault . | . . . Garrison . | . . . Intercept . | . . . Searches Triggered . | . . . Construction Impeded . | . . . Haulers Reinforced . | . . . Active Scanning Responses . | . . . Cargo Convoy Interrupts . | . . . Stealth | -11 -10 -9 --------- Run | Yrd Mat Mat Distress Signals 2 | . . 2 Communications Jammed . | . . . Distress Signals . | . . . Times Spotted 15 | . 4 11 Peak Tracking Total 6 | . 1 6 Tactical Retreats 3 | . . 3 Traps | -11 -10 -9 ------- Run | Yrd Mat Mat Traps Triggered . | . . . Indirectly . | . . . Trap Hack Attempts . | . . . Triggered . | . . . Disarmed . | . . . Reprogrammed . | . . . Reused . | . . . Traps Extracted . | . . . Installed . | . . . Triggered . | . . . Machines | -11 -10 -9 ---------- Run | Yrd Mat Mat Machines Disabled 1 | . . 1 Max in Single Turn 1 | . . 1 Machines Repaired . | . . . Machines Dismantled . | . . . Machines Sabotaged . | . . . Overloaded Fab Kills . | . . . Hacking | -11 -10 -9 --------- Run | Yrd Mat Mat Machines Accessed 2 | . 1 1 Terminals 1 | . . 1 Fabricators . | . . . Repair Stations 1 | . 1 . Recycling Units . | . . . Scanalyzers . | . . . Garrison Access . | . . . Total Hacks 4 | . 2 2 Successful 3 | . 1 2 Failed 1 | . 1 . Catastrophic . | . . . Database Lockouts . | . . . Manual 2 | . . 2 Terminals 2 | . . 2 Fabricators . | . . . Repair Stations 2 | . 2 . Recycling Units . | . . . Scanalyzers . | . . . Garrison Access . | . . . Terminal Hacks . | . . . Fabricator Hacks . | . . . Repair Station Hacks 1 | . 1 . Refit 1 | . 1 . Recycling Unit Hacks . | . . . Scanalyzer . | . . . Garrison Access Hacks . | . . . Unauthorized Hacks 2 | . . 2 Terminals 2 | . . 2 Track 1 | . . 1 Operators 1 | . . 1 Fabricators . | . . . Repair Stations . | . . . Recycling Units . | . . . Scanalyzers . | . . . Garrison Access . | . . . Data Cores Recovered . | . . . Used . | . . . Hacking Detections 1 | . 1 . Full Trace Events . | . . . Feedback Events . | . . . Feedback Blocked . | . . . Robot Schematics Acquired . | . . . Robots Built . | . . . Authchips . | . . . Time . | . . . Total Robot Build Rating . | . . . Part Schematics Acquired . | . . . Parts Built . | . . . Authchips . | . . . Time . | . . . Total Part Build Rating . | . . . Parts Repaired . | . . . Time . | . . . Parts Recycled . | . . . Recycled Matter . | . . . Retrieved Matter . | . . . Retrieved Components . | . . . Parts Scanalyzed . | . . . Part Schematics Acquired . | . . . Parts Damaged . | . . . Bothacking | -11 -10 -9 ------------ Run | Yrd Mat Mat Used RIF Installer . | . . . Robots Hacked . | . . . Non-combat . | . . . Combat . | . . . Robot Hacks Applied . | . . . Relay Couplers Released . | . . . Fabnet Peak Effective % . | . . . Robots Rewired . | . . . Allies Hacked . | . . . Hacks Repelled . | . . . Allies | -11 -10 -9 -------- Run | Yrd Mat Mat Total Allies . | . . . Largest Group . | . . . Highest-Rated Group . | . . . Highest-Rated Ally . | . . . Total Orders . | . . . Ally Attacks . | . . . Total Damage . | . . . Kills . | . . . Allies Corrupted . | . . . Allies Melted . | . . . Intel | -11 -10 -9 ------- Run | Yrd Mat Mat Active Infowar (turns) 213 | . 81 132 Seismic 213 | . 81 132 ECM 1 | . 1 . Robot Analysis Total . | . . . Derelict Logs Recovered . | . . . Drone Launches . | . . . Drone Recoveries . | . . . Exploration | -11 -10 -9 ------------- Run | Yrd Mat Mat Turns Passed 491 | 59 118 314 Spaces Moved 363 | 46 104 213 Core 226 | 34 104 88 Treads 66 | 12 . 54 Legs . | . . . Wheels . | . . . Hover . | . . . Flight 71 | . . 71 Fastest Speed 31 | 50 50 31 Average Speed 97 | 108 83 102 Slowest Speed 250 | 160 100 250 Overloaded Moves . | . . . Propulsion Burnouts . | . . . Robots Hopped 2 | . . 2 Potential Cave-ins . | . . . Cave-ins Triggered . | . . . Exploration Rate (%) 18 | 3 25 26 Regions Visited 2 Branch Regions . Pre-discovered Areas . | . . . Known Exits Taken . | . . . Unknown Exits Taken 2 | 1 1 . Scrap Searched . | . . . Spaces Dug . | . . . Terrain Destroyed 1 | . . 1 Melee . | . . . Projectile . | . . . AOE 1 | . . 1 Terrain Rammed . | . . . Walls Destroyed . | . . . Machines Disabled . | . . . Actions | -11 -10 -9 --------- Run | Yrd Mat Mat Total 459 | 54 126 279 Wait 24 | . . 24 Move 357 | 45 103 209 Hop 2 | . . 2 Pick Up 11 | 3 6 2 Fast Attach 10 | 4 1 5 Attach 5 | . 1 4 Detach 5 | . 3 2 Swap 1 | . . 1 Drop 12 | 2 6 4 Fire 31 | . 6 25 Melee . | . . . Ram . | . . . Kick . | . . . Crush 1 | . . 1 Escape Stasis . | . . . Rewire . | . . . Trap . | . . . Miscellaneous . | . . . Route ------- -11/Scrapyard -10/Materials -9/Materials (discovered 1 exit: [*Mat]) History --------- Turn | Location | Event 8 | -11/Scrapyard | Discovered new exit (range 15) 60 | -11/Scrapyard | Entered Materials 132 | -10/Materials | Discovered new exit (range 15) 178 | -10/Materials | Entered another Materials area 178 | -9/Materials | Evolved 2 slots: Propulsion x2 308 | -9/Materials | Build established: Mutant 462 | -9/Materials | Discovered new exit (range 16) 492 | -9/Materials | Self-destructed Last Messages --------------- 00444_ K-01 Serf collects debris. 00446_ K-01 Serf destroyed. 00448_ K-01 Serf collects debris. 00455_ R-06 Scavenger collects Wheel. 00456_ Acquired Imp. Flight Unit. 00456_ ALERT: Hostiles spotted, dispatching reinforcements to Terminal M003. 00456_ R-06 Scavenger collects Corrupted Wheel. 00457_ K-01 Serf collects debris. 00459_ Acquired Imp. Flight Unit. 00459_ R-06 Scavenger collects Sml. Matter Pod. 00461_ K-01 Serf cleans the Neutrino Reactor. 00462_ K-01 Serf collects debris. 00462_ EXIT=FOUND 00465_ K-01 Serf collects debris. 00466_ K-01 Serf cleans the Neutrino Reactor. 00468_ Dropped Lgt. Treads. 00470_ K-01 Serf collects debris. 00471_ R-06 Scavenger collects Lgt. Treads. 00476_ K-01 Serf cleans the Neutrino Reactor. Map ----- +----------------------------------------------------+ | ?????????????????????????????????????????????????? | | ?????????????????????????????????????????????????? | | ?????????????????????????????????????????????????? | | ?????????????????????????????????????????????????? | | ?????????????????????????????????????????????????? | | ?????????????????????????????????????????????????? | | ?????????????????????????????????????????????????? | | ?????????????????????????????????????????????????? | | ?????????????????????????????????????????????????? | | ?????????????????????????????????????????????????? | | ?????????????????????????????????????????????????? | | ?????????????????????????????????????????????????? | | ?????????????????????????????????????????????????? | | ?????????????????????????????????????????????????? | | ?????????????????????????????????????????????????? | | ?????????????????????????????????????????????????? | | ?????????????????????????????????????????????????? | | ?????????????????????????????????????????????????? | | ?????????????????????????????????????????????????? | | ????????????????????????#+#??????????????????????? | | ????????????????????????# #??????????????????????? | | ????????????????????????# #??????????????????????? | | ????????????????????????#a#??????????????????????? | | ????????????????????????# #??????????????????????? | | ????????????????????????# #??????????????????????? | | ????????????????????????#@#??????????????????????? | | ????????????????????????# #??????????????????????? | | ????????????""??????????# #?##########???????????? | | ????????????? ???????### ### #???????????? | | ???????????###+######## # """ ????????????? | | ??????????## # """""????????????? | | ??????????"" + """""????????????? | | ??????????"Y # """""????????????? | | ??????????"" k # """ ????????????? | | ???????????# # #???????????? | | ???????????# """ """ # #???????????? | | ???????????#^ """ """ # #???????????? | | ????????+### """ """ ################?????? | | ????? % k#?????# #?????? | | ????? #?????# " "#?????? | | ????? r####### """""#?????? | | ??????###### # """""#?????? | | ???????????# ####### + """""#?????? | | ???????????# ??????#"" # """""#?????? | | ???????????# ???????#"T """ # """""#?????? | | ???????????# ????????#"" """ # """""#?????? | | ???????????# ?????????# """ # #?????? | | ???????????#??????????# ##########???### | | ??????????????????????# # ######## | | ??????????????????????# % """ + # | +----------------------------------------------------+ Best States ------------- Heat Dissipation 28 Energy Generation 11 Energy Capacity 250 Matter Stores 300 Matter Capacity 300 Sight Range 16 Terrain Scan Density 10 Evasion (%) 63 Recoil Reduction 2 Item Schematics ----------------- None Robot Schematics ------------------ None Fabricated ------------ Nothing Repaired ---------- Nothing Alien Tech Used ----------------- None Achievements -------------- None Challenges ------------ None Game ------ Seed FlyingExplosiveGun Manual? 0 Play Time 00:08:41 Cumulative 218.5 hours Start 2025.08.03 @ 13:30:14 End 2025.08.03 @ 13:36:15 Sessions 1 Manual Loads 0 Difficulty Rogue Special Mode None Game No. 230 Rogue 230 Adventurer 0 Explorer 0 Win Type - Total 3 Types 3/0/0/0/0/0/0/0/0/0 Lore% 73 Gallery% 70 Achievement% 66 Wizard Run 0 Options --------- Layout 0 ASCII 0 Keyboard 1 Movement Vi Keybinds 0 Fullscreen 1 Font 18/X11 Map View 76x50 Zoom Use 0% Tactical HUD 1 Map Filters NONE Filters NONE Steam X RUN: 0f70d0db-023c-488d-a01d-65dfe1b1bd81